fUSD/lending_fUSD_20241011
["ID","MTS","AMOUNT","RATE_DAILY","PERIOD"]
[340130711,1728665439886,-150.0,0.00017736,2]
[340130713,1728665439896,-859.66,0.000179,7]
[340130715,1728665439905,-750.0,0.00018,2]
[340130717,1728665439914,-869.44,0.00018,2]
[340130719,1728665439923,-824.97650505,0.00018,2]
[340130721,1728665439934,-44.46349495,0.00018,2]
[340130723,1728665439943,-869.44,0.00018,2]
[340130725,1728665439952,-869.44,0.00018,2]
[340130727,1728665439962,-869.44,0.00018,2]
[340130729,1728665439972,-869.44,0.00018,2]
[340130731,1728665439981,-869.44,0.00018,2]
[340130733,1728665439990,-869.44,0.00018,2]
[340130734,1728665439999,-869.44,0.00018,2]
[340130736,1728665440008,-869.44,0.00018,2]
[340130738,1728665440018,-869.44,0.00018,2]
[340130740,1728665440028,-869.44,0.00018,2]
[340130742,1728665440037,-869.44,0.00018,2]
[340130744,1728665440046,-869.44,0.00018,2]
[340130746,1728665440055,-869.44,0.00018,2]
[340130748,1728665440064,-869.44,0.00018,2]
[340130750,1728665440073,-869.44,0.00018,2]
[340130752,1728665440082,-869.44,0.00018,2]
[340130754,1728665440091,-869.44,0.00018,2]
[340130756,1728665440099,-869.44,0.00018,2]
[340130758,1728665440109,-150.0,0.00018169,2]
[340130760,1728665440118,-534.59,0.00018356,2]
[340130762,1728665440128,-533.03069648,0.00018356,2]
[340130764,1728665440143,-1.55930352,0.00018356,2]
[340130766,1728665440152,-875.68301769,0.00018356,2]
[340131025,1728665442575,-760.69481341,0.00018356,2]
[340131028,1728665442589,-299.26329896,0.00018356,2]
[340131038,1728665442683,-1576.76008579,0.00018356,2]
[340131040,1728665442695,-26158.05322185,0.00018356,2]
[340131046,1728665442739,-592.3622745,0.00018356,2]
[340131048,1728665442750,-835.627998,0.00018356,2]
[340131051,1728665442760,-710.0,0.00018356,2]
[340131055,1728665442796,-434.12000044,0.00018356,2]
[340131057,1728665442807,-7345.5574327,0.00018356,2]
[340131063,1728665442852,-1250.0,0.00018356,2]
[340131162,1728665445429,-631.49999999,0.00014086,2]
[340131163,1728665445440,-752.9375,0.00014086,2]
[340131164,1728665445451,-9923.04250001,0.00014086,2]
[340131165,1728665445461,-17032.98597732,0.00018356,2]
[340131166,1728665445487,-7158.51102364,0.00018356,2]
[340131167,1728665445498,-255.00000002,0.00018356,2]
[340131168,1728665445509,-12051.88030516,0.00018356,2]
[340131169,1728665445520,-357.26350006,0.00018356,2]
[340131170,1728665445532,-1600.0,0.00018356,2]
[340131171,1728665445550,-1519.26705046,0.00018356,2]
[340131172,1728665445560,-432.34,0.00018399,2]
[340131173,1728665445571,-165.11,0.000185,2]
[340131174,1728665445581,-151.0,0.00018599,2]
[340131175,1728665445590,-150.0,0.00018601,2]
[340131176,1728665445599,-151.6,0.00018603,2]
[340131177,1728665445608,-500.0,0.00018904,2]
[340131178,1728665445618,-53.85405514,0.00019,2]
[340131179,1728665445630,-1758.27561627,0.00019,2]
[340131180,1728665445639,-500.0,0.00019,2]
[340131181,1728665445651,-150.0,0.00019034,2]
[340131182,1728665445661,-152.0,0.00019165,4]
[340131183,1728665445670,-2570.35744211,0.00019178,2]
[340131184,1728665445680,-200.0,0.00019178,2]
[340131185,1728665445689,-200.0,0.00019178,2]
[340131186,1728665445698,-193.0,0.00019178,2]
[340131187,1728665445708,-111.24131086,0.00019361,2]
[340131188,1728665445720,-42.29868914,0.00019361,2]
[340131189,1728665445730,-1623.59131086,0.00019456,2]
[340131190,1728665445742,-608.21731146,0.00019456,2]
[340131191,1728665445753,-281.74546058,0.00019456,2]
[340131192,1728665445765,-4910.77251004,0.00019456,2]
[340131193,1728665445775,-150.0,0.00019466,2]
[340131194,1728665445785,-1003.54968222,0.000195,2]
[340131195,1728665445795,-150.0,0.00019899,2]
[340131196,1728665445805,-223.62,0.000199,31]
[340131197,1728665445815,-2237.14163445,0.0002,2]
[340131198,1728665445825,-500.0,0.0002,2]
[340131199,1728665445835,-1020.56990856,0.0002,2]
[340131200,1728665445845,-150.0,0.0002,2]
[340131201,1728665445854,-53550.74787903,0.0002,2]
[340131202,1728665445870,-3107.94503315,0.0002,2]
[340131203,1728665445882,-283.83765539,0.0002,2]
[340131206,1728665478889,171.93,0.00011,2]
[340131212,1728665784655,154.73,0.00011,2]
[340131213,1728665905230,173.79,0.00010959,2]
[340131214,1728666002528,150.0,0.00010959,2]
[340131215,1728666002737,150.0,0.00010959,2]
[340131216,1728666002952,150.0,0.00010959,2]
[340131217,1728666003481,150.0,0.00010959,2]
[340131219,1728666003694,250.08302242,0.00010959,2]
[340131224,1728666090896,150.0,0.00011,2]
[340131229,1728666396793,150.0,0.00011,2]
[340131239,1728666419103,158.39,0.00010959,2]
[340131243,1728666488118,200.0,0.00010904,2]
[340131246,1728666614689,200.0,0.00010849,2]
[340131249,1728666631700,-414.01989049,0.00011166,2]
[340131250,1728666631709,-300.0,0.00011299,2]
[340131251,1728666631719,-12493.9736521,0.000113,2]
[340131252,1728666631728,-414.01989049,0.000114,2]
[340131253,1728666631737,-414.01989049,0.00011678,2]
[340131254,1728666631747,-8343.65545158,0.000119,2]
[340131255,1728666631757,-4574.0,0.000119,2]
[340131256,1728666631768,-351.03364842,0.000119,2]
[340131257,1728666631777,-414.01989049,0.00011937,2]
[340131258,1728666631786,-414.01989049,0.0001211,2]
[340131259,1728666631795,-499.99,0.0001231,2]
[340131260,1728666631804,-420.0,0.00012413,2]
[340131261,1728666631813,-414.01989049,0.00012459,2]
[340131262,1728666631822,-414.01989049,0.00012648,2]
[340131263,1728666631831,-414.01989049,0.00012918,2]
[340131264,1728666631839,-168.52,0.00012945,2]
[340131265,1728666631849,-414.01989049,0.00013367,2]
[340131266,1728666631858,-414.01989049,0.00013437,2]
[340131267,1728666631868,-587.0,0.00013636,2]
[340131268,1728666631877,-414.01989049,0.00013706,2]
[340131270,1728666631887,-414.01989049,0.00014239,2]
[340131271,1728666631897,-73.02216665,0.00014324,2]
[340131273,1728666631909,-290.00000017,0.00014324,2]
[340131275,1728666631925,-25.83783318,0.00014324,2]
[340131277,1728666631934,-414.01989049,0.00014451,2]
[340131278,1728666631945,-414.01989049,0.00014643,2]
[340131279,1728666631955,-823.0,0.0001498,2]
[340131280,1728666631965,-414.01989049,0.00014986,2]
[340131281,1728666631975,-1503.0,0.00015,2]
[340131282,1728666631985,-164.0,0.00015,2]
[340131283,1728666631994,-227.0,0.000151,2]
[340131285,1728666632003,-11414.6,0.00015193,2]
[340131286,1728666632013,-414.01989049,0.00015303,2]
[340131287,1728666632022,-414.01989049,0.00015505,2]
[340131288,1728666632032,-414.01989049,0.00015641,2]
[340131289,1728666632040,-190.968,0.0001566,2]
[340131290,1728666632050,-163.581,0.0001566,2]
[340131291,1728666632059,-151.0,0.00015689,2]
[340131292,1728666632068,-217.27,0.0001596,2]
[340131293,1728666632078,-193.83,0.00015971,2]
[340131294,1728666632087,-1000.0,0.00015989,2]
[340131295,1728666632097,-500.0,0.00015989,2]
[340131296,1728666632106,-674.641466,0.00016,2]
[340131297,1728666632116,-11214.13,0.00016001,2]
[340131298,1728666632125,-342.03,0.00016015,2]
[340131299,1728666632134,-5907.46,0.00016116,2]
[340131300,1728666632143,-250.0,0.0001613,2]
[340131301,1728666632153,-414.01989049,0.00016137,2]
[340131302,1728666632162,-500.0,0.00016164,2]
[340131303,1728666632171,-200.0,0.00016169,2]
[340131304,1728666632181,-177.54,0.00016186,2]
[340131305,1728666632190,-250.0,0.00016242,2]
[340131306,1728666632199,-250.0,0.00016242,2]
[340131307,1728666632209,-906.57,0.00016242,2]
[340131308,1728666632218,-414.01989049,0.00016282,2]
[340131309,1728666632227,-983.47,0.00016326,2]
[340131310,1728666632236,-2751.0,0.00016379,2]
[340131311,1728666632246,-150.0,0.00016438,2]
[340131312,1728666632255,-210.53,0.00016438,2]
[340131313,1728666632264,-1152.0,0.00016456,2]
[340131314,1728666632274,-388.86,0.00016588,2]
[340131315,1728666632283,-193.98,0.00016666,2]
[340131316,1728666632293,-414.01989049,0.00016711,2]
[340131317,1728666632303,-414.01989049,0.0001679,2]
[340131318,1728666632312,-23890.0,0.00016855,2]
[340131319,1728666632321,-150.0,0.00016871,2]
[340131320,1728666632331,-11414.47,0.00016903,2]
[340131321,1728666632340,-167.0,0.00017154,2]
[340131322,1728666632349,-414.01989049,0.00017183,2]
[340131323,1728666632359,-150.0,0.00017304,2]
[340131324,1728666632369,-414.01989049,0.00017466,2]
[340131325,1728666632378,-300.0,0.00017482,2]
[340131326,1728666632387,-414.01989049,0.00017672,2]
[340131327,1728666632396,-167.0,0.0001772,2]
[340131328,1728666632405,-150.0,0.00017736,2]
[340131329,1728666632414,-180.0,0.00017795,2]
[340131330,1728666632423,-11403.43,0.0001797,2]
[340131331,1728666632433,-1000.0,0.00017988,2]
[340131332,1728666632443,-500.0,0.00018,2]
[340131333,1728666632452,-372.8,0.00018,7]
[340131334,1728666632461,-414.01989049,0.00018002,2]
[340131335,1728666632470,-1613.0,0.00018078,2]
[340131336,1728666632479,-150.0,0.00018169,2]
[340131337,1728666632489,-414.01989049,0.00018248,2]
[340131338,1728666632498,-167.0,0.00018286,2]
[340131339,1728666632507,-414.01989049,0.00018503,2]
[340131340,1728666632516,-150.0,0.00018601,2]
[340131341,1728666632525,-414.01989049,0.00018784,2]
[340131342,1728666632534,-388.86,0.00018852,2]
[340131343,1728666632543,-300.0,0.00018852,2]
[340131344,1728666632553,-167.0,0.00018853,2]
[340131345,1728666632561,-500.0,0.00018904,2]
[340131346,1728666632570,-1000.0,0.00019,2]
[340131347,1728666632579,-500.0,0.00019,2]
[340131348,1728666632589,-150.0,0.00019034,2]
[340131349,1728666632598,-414.01989049,0.00019034,2]
[340131350,1728666632606,-414.01989049,0.00019206,2]
[340131351,1728666632615,-162.49386598,0.0001941,2]
[340131352,1728666632624,-167.0,0.00019419,2]
[340131353,1728666632633,-414.01989049,0.00019459,2]
[340131354,1728666632642,-150.0,0.00019466,2]
[340131355,1728666632652,-161.53293222,0.00019611,2]
[340131356,1728666632661,-5870.41566999,0.000197,2]
[340131357,1728666632671,-1069.62,0.00019724,2]
[340131358,1728666632680,-534.7,0.00019724,2]
[340131359,1728666632689,-534.7,0.00019724,2]
[340131360,1728666632697,-182.1578,0.00019773,2]
[340131361,1728666632706,-1464.2522,0.000198,2]
[340131362,1728666632716,-8028.470954,0.0001981,2]
[340131363,1728666632726,-300.39,0.00019836,2]
[340131364,1728666632734,-860.75,0.00019836,2]
[340131365,1728666632743,-150.0,0.00019836,2]
[340131366,1728666632752,-150.0,0.00019836,2]
[340131367,1728666632761,-719.73,0.00019836,2]
[340131368,1728666632771,-301.34,0.00019836,2]
[340131369,1728666632781,-150.0,0.00019836,2]
[340131370,1728666632791,-2000.0,0.0001984,2]
[340131371,1728666632800,-2258.0,0.0001986,2]
[340131372,1728666632809,-11204.22,0.00019866,2]
[340131373,1728666632818,-442.70927517,0.00019885,2]
[340131374,1728666632997,-150.0,0.00019899,2]
[340131375,1728666633007,-2242.692952,0.000199,2]
[340131376,1728666633017,-76626.4775,0.000199,2]
[340131377,1728666633026,-4010.1616,0.000199,2]
[340131378,1728666633036,-1000.0,0.000199,2]
[340131379,1728666633045,-338.82992589,0.000199,2]
[340131380,1728666633055,-414.01989049,0.00019916,2]
[340131381,1728666633064,-534.81,0.00019968,2]
[340131382,1728666633074,-658.08,0.00019968,2]
[340131383,1728666633084,-534.81,0.00019968,2]
[340131384,1728666633093,-534.81,0.00019968,2]
[340131385,1728666633103,-534.81,0.00019968,2]
[340131386,1728666633112,-534.81,0.00019968,2]
[340131387,1728666633122,-534.81,0.00019968,2]
[340131388,1728666633131,-250.32109785,0.00019973,2]
[340131389,1728666633141,-27717.5707529,0.0001998,4]
[340131390,1728666633151,-167.0,0.00019985,2]
[340131391,1728666633160,-1000.0,0.00019987,2]
[340131392,1728666633170,-500.0,0.00019989,2]
[340131393,1728666633179,-500.0,0.00019989,2]
[340131394,1728666633189,-500.0,0.00019989,2]
[340131395,1728666633198,-381.04616275,0.00019989,2]
[340131396,1728666633207,-6951.09035317,0.0001999,4]
[340131401,1728666638045,-2346.14592091,0.0001999,4]
[340131402,1728666638103,-3056.4019024,0.0001999,4]
[340131446,1728666639674,-1941.09668666,0.0001999,4]
[340131732,1728666642914,-77716.83042007,0.0001999,4]
[340131740,1728666703057,150.0,0.00011,2]
[340131788,1728666891006,225.56073912,0.00010966,2]
[340131789,1728666943538,161.24,0.00010959,2]
[340131790,1728667010109,150.0,0.00011,2]
[340131791,1728667051169,550.0,0.0001,2]
[340131793,1728667315329,150.0,0.00011,2]
[340131794,1728667360280,1533.92605859,0.00010966,2]
[340131795,1728667375076,323.0012,0.00010966,2]
[340131796,1728667507716,3175130.70103739,0.00011,2]
[340131797,1728667619172,269.86,0.00011,2]
[340131801,1728667669320,200.0,0.00010945,2]
[340131802,1728667677813,896.41827038,0.0001,2]
[340131803,1728667680959,1501200.2208622,0.00011,2]
[340131822,1728667831824,-620.033907,0.00011009,2]
[340131823,1728667831833,-428.371593,0.00012,2]
[340131824,1728667831910,-171.628407,0.00012,2]
[340131825,1728667831920,-467.09060147,0.00012158,2]
[340131826,1728667831931,-2304.18456413,0.00012158,2]
[340131827,1728667831959,-538.88,0.00012158,2]
[340131828,1728667831984,-2781.38216888,0.00012158,2]
[340131829,1728667831996,-1233.77198647,0.00012158,2]
[340131830,1728667832007,-3839.44275338,0.00012158,2]
[340131831,1728667832018,-3402.38329653,0.00012158,2]
[340131832,1728667832027,-1405.13506309,0.000139,2]
[340131833,1728667832037,-650.0,0.00014,2]
[340131834,1728667832046,-469.87,0.00014852,2]
[340131835,1728667832055,-499.99,0.00014852,2]
[340131836,1728667832064,-150.0,0.00014999,2]
[340131837,1728667832073,-177232.67423853,0.00015,2]
[340131838,1728667832082,-5283.374103,0.00015004,2]
[340131839,1728667832091,-600.53,0.00015104,2]
[340131840,1728667832100,-10011.49357286,0.0001513,2]
[340131841,1728667832109,-1214.34946199,0.00015235,2]
[340131842,1728667832118,-1517.64,0.000153,2]
[340131843,1728667832129,-52803.78,0.000153,2]
[340131844,1728667832138,-1491.56,0.00015399,2]
[340131845,1728667832147,-15804.16998144,0.000154,2]
[340131846,1728667832157,-830.8,0.000154,2]
[340131847,1728667832166,-480.5212064,0.000154,2]
[340131848,1728667832175,-812.49902825,0.000155,2]
[340131849,1728667832184,-378.68146172,0.000156,2]
[340131850,1728667832194,-2864.50615875,0.0001575,2]
[340131851,1728667832202,-700.0,0.00016,2]
[340131852,1728667832212,-150.0,0.00016,2]
[340131853,1728667832224,-499.99,0.00016,2]
[340131854,1728667832235,-150.0,0.00016124,2]
[340131855,1728667832245,-810.49,0.00016193,2]
[340131856,1728667832255,-214.7585,0.00016338,2]
[340131857,1728667832266,-200.0,0.0001634,2]
[340131858,1728667832278,-455.48,0.00016425,2]
[340131859,1728667832288,-175.44,0.00016438,2]
[340131860,1728667832297,-150.0,0.00016438,2]
[340131861,1728667832306,-190.39,0.00016728,2]
[340131862,1728667832316,-160.68351386,0.0001675,2]
[340131863,1728667832327,-914.0,0.000168,2]
[340131864,1728667832337,-150.0,0.00016871,2]
[340131865,1728667832348,-400.0,0.00016999,2]
[340131866,1728667832357,-250.0,0.00017009,2]
[340131867,1728667832367,-152.775,0.00017009,2]
[340131868,1728667832377,-421.5149265,0.00017016,2]
[340131869,1728667832386,-469.87,0.00017116,2]
[340131870,1728667832395,-250.0,0.00017209,2]
[340131871,1728667832404,-150.0,0.00017304,2]
[340131872,1728667832414,-152.0,0.0001739,3]
[340131873,1728667832424,-200.0,0.00017425,2]
[340131874,1728667832433,-1114.77,0.00017465,2]
[340131875,1728667832442,-250.0,0.00017466,2]
[340131876,1728667832452,-193.98,0.00017466,2]
[340131877,1728667832461,-584.35,0.00017466,2]
[340131878,1728667832470,-1497.25,0.00017466,2]
[340131879,1728667832479,-634.83,0.00017466,2]
[340131880,1728667832488,-23900.0,0.00017466,2]
[340131881,1728667832497,-1160.95,0.0001747,2]
[340131882,1728667832507,-584.35,0.00017471,2]
[340131883,1728667832517,-584.35,0.00017475,2]
[340131884,1728667832526,-584.35,0.0001748,2]
[340131885,1728667832536,-584.35,0.00017484,2]
[340131886,1728667832545,-584.35,0.00017489,2]
[340131887,1728667832554,-584.35,0.00017494,2]
[340131888,1728667832564,-584.35,0.00017498,2]
[340131889,1728667832573,-584.35,0.00017503,2]
[340131890,1728667832582,-584.35,0.00017508,2]
[340131891,1728667832591,-584.35,0.00017512,2]
[340131892,1728667832600,-584.35,0.00017517,2]
[340131893,1728667832610,-427.47473674,0.0001752,2]
[340131894,1728667832619,-584.35,0.00017521,2]
[340131895,1728667832629,-584.35,0.00017526,2]
[340131896,1728667832639,-584.35,0.00017531,2]
[340131897,1728667832648,-584.35,0.00017535,2]
[340131898,1728667832658,-584.35,0.0001754,2]
[340131899,1728667832667,-584.35,0.00017544,2]
[340131900,1728667832677,-584.35,0.00017549,2]
[340131901,1728667832686,-584.35,0.00017554,2]
[340131902,1728667832695,-2751.0,0.00017591,2]
[340131903,1728667832704,-202.78,0.00017615,2]
[340131904,1728667832714,-414.01989051,0.00017675,2]
[340131905,1728667832723,-150.0,0.00017736,2]
[340131906,1728667832732,-150.0,0.00017803,2]
[340131907,1728667832741,-150.69,0.00017817,2]
[340131908,1728667832750,-414.01989051,0.00017971,2]
[340131909,1728667832762,-750.0,0.00018,2]
[340131910,1728667832771,-10701.16819955,0.00018,2]
[340131911,1728667832783,-9377.40638601,0.00018,2]
[340131912,1728667832793,-1123.72630925,0.00018,2]
[340131913,1728667832802,-5575.60235508,0.00018,2]
[340131914,1728667832813,-1022.93671992,0.00018,2]
[340131915,1728667832822,-1680.81615666,0.000181,2]
[340131916,1728667832831,-150.0,0.00018169,2]
[340131917,1728667832840,-414.01989051,0.00018349,2]
[340131918,1728667832849,-300.0,0.00018359,2]
[340131919,1728667832859,-9180.75923532,0.00018461,2]
[340131920,1728667832870,-970.8031062,0.00018461,2]
[340131921,1728667832883,-1108.19691343,0.00018461,2]
[340131922,1728667837891,-0.94074505,0.00018461,2]
[340131923,1728667837900,-1180.63709125,0.00018515,2]
[340131924,1728667837911,-1656.96940033,0.00018515,2]
[340131925,1728667837922,-726.06500125,0.00018515,2]
[340131926,1728667837933,-586.27968751,0.00018515,2]
[340131927,1728667838119,-500.0,0.00018515,2]
[340131928,1728667838131,-633.42292265,0.00018515,2]
[340131929,1728667838140,-414.01989051,0.0001855,2]
[340131930,1728667838150,-150.0,0.00018601,2]
[340131931,1728667838158,-2792.9886,0.00018724,2]
[340131932,1728667838167,-925.3018,0.00018764,2]
[340131933,1728667838177,-167.2143,0.00018764,2]
[340131934,1728667838185,-414.01989051,0.00018764,2]
[340131935,1728667838194,-167.0,0.00018773,2]
[340131936,1728667838204,-2500.0,0.000188,2]
[340131937,1728667838213,-11155.37,0.00018824,2]
[340131938,1728667838224,-11254.68,0.00018863,2]
[340131939,1728667838233,-375.40289783,0.000189,2]
[340131940,1728667838245,-1856.5631075,0.000189,2]
[340131941,1728667838258,-9880.58059467,0.000189,2]
[340131942,1728667838268,-262.2927,0.000189,2]
[340131943,1728667838282,-150.0,0.00019034,2]
[340131944,1728667838292,-414.01989051,0.00019082,2]
[340131945,1728667838301,-400.0,0.00019124,2]
[340131946,1728667838311,-534.81,0.00019146,2]
[340131947,1728667838322,-152.0,0.00019165,4]
[340131948,1728667838332,-534.81,0.00019178,2]
[340131949,1728667838342,-180.0,0.00019213,2]
[340131950,1728667838353,-414.01989051,0.00019259,2]
[340131951,1728667838362,-26042.38,0.00019339,2]
[340131952,1728667838372,-469.87,0.0001938,2]
[340131953,1728667838385,-167.0,0.00019393,2]
[340131954,1728667838394,-150.0,0.00019466,2]
[340131955,1728667838404,-1007.0,0.000195,2]
[340131956,1728667838413,-12862.0,0.00019602,2]
[340131957,1728667838422,-414.01989054,0.00019661,2]
[340131958,1728667838432,-600.0,0.00019673,2]
[340131959,1728667838443,-217.0,0.0001969,2]
[340131960,1728667838454,-292.4675,0.000197,2]
[340131961,1728667838464,-620.039,0.0001971,2]
[340131962,1728667838473,-1609.03778506,0.0001971,2]
[340131963,1728667838645,-804.00071494,0.0001971,2]
[340131964,1728667838654,-59.89748498,0.00019729,2]
[340131965,1728667838738,-240.10251502,0.00019729,2]
[340131966,1728667838747,-15.33423998,0.0001974,2]
[340131967,1728667838758,-161.4929646,0.0001974,2]
[340131968,1728667838768,-164.65606493,0.0001978,2]
[340131969,1728667838777,-6010.35442655,0.0001978,4]
[340131973,1728667839796,-300.22885422,0.0001978,4]
[340131974,1728667839807,-1477.3660712,0.0001978,4]
[340131975,1728667839968,-15607.93367631,0.0001978,4]
[340131976,1728667839980,-365.805,0.0001978,4]
[340131977,1728667839991,-1460.95988156,0.0001978,4]
[340131978,1728667840003,-399.75449055,0.0001978,4]
[340131979,1728667840014,-623.505,0.0001978,4]
[340131980,1728667840029,-11214.48604709,0.0001978,4]
[340131981,1728667840041,-48080.88857082,0.0001978,4]
[340131982,1728667840050,-687.77001019,0.0001978,2]
[340131983,1728667840059,-150.0,0.00019781,4]
[340131984,1728667840068,-419.82834003,0.00019789,2]
[340131985,1728667840077,-351.59162291,0.0001979,4]
[340132202,1728667842791,-2751.0,0.0001658,2]
[340132203,1728667842800,-13092.63179293,0.0001979,4]
[340132211,1728667842849,-2476.68255503,0.0001979,4]
[340132213,1728667842860,-489.29187735,0.0001979,4]
[340132215,1728667842871,-3075.72210345,0.0001979,4]
[340132217,1728667842882,-22212.84406301,0.0001979,4]
[340132220,1728667842894,-701.666667,0.0001979,4]
[340132222,1728667842906,-1006.62630079,0.0001979,4]
[340132224,1728667842917,-352.72799642,0.0001979,4]
[340132226,1728667842928,-1175.26064,0.0001979,4]
[340132228,1728667842939,-675.26086328,0.0001979,4]
[340132229,1728667842954,-1269.9797806,0.0001979,4]
[340132230,1728667842966,-95688.51710123,0.0001979,4]
[340132231,1728667842976,-84458.9201948,0.0001979,4]
[340132232,1728667842985,-500.0,0.000198,2]
[340132233,1728667842994,-1555.992,0.000198,2]
[340132234,1728667843003,-198901.6024,0.000198,2]
[340132235,1728667843013,-124051.76775341,0.000198,2]
[340132236,1728667843022,-2000.0,0.0001984,2]
[340132237,1728667843031,-28513.7606728,0.00019851,4]
[340132238,1728667843041,-26671.2379562,0.00019851,4]
[340132239,1728667843050,-57027.5213455,0.0001986,4]
[340132240,1728667843059,-35561.6506083,0.0001986,4]
[340132241,1728667843069,-28513.7606728,0.0001987,4]
[340132242,1728667843078,-35561.6506083,0.0001987,4]
[340132243,1728667843087,-504.77801501,0.00019873,2]
[340132244,1728667843097,-114055.042691,0.0001988,4]
[340132245,1728667843106,-62232.8885646,0.0001988,4]
[340132246,1728667843115,-57027.5213455,0.0001989,4]
[340132247,1728667843124,-687.77001019,0.0001989,2]
[340132248,1728667843135,-37605.2297,0.0001989,2]
[340132249,1728667843144,-100000.0,0.0001989,2]
[340132251,1728667843153,-150.0,0.00019899,2]
[340132253,1728667843163,-250674.85957324,0.000199,3]
[340132255,1728667843172,-11071.0,0.0001999,2]
[340132257,1728667843181,-971.4487091,0.00019996,2]
[340132258,1728667843190,-195.0052366,0.00019996,2]
[340132260,1728667843199,-3804.4238822,0.00019996,2]
[340132262,1728667843208,-2674.95672997,0.00019999,2]
[340132264,1728667843218,-39799.9022588,0.0002,2]
[340132266,1728667843229,-512.00786555,0.0002,2]
[340132269,1728667843246,-30212.7170874,0.0002,2]
[340132271,1728667843257,-513.18500005,0.0002,2]
[340132273,1728667843269,-5150.83994801,0.0002,2]
[340132274,1728667843284,-586.38891601,0.0002,2]
[340132275,1728667843295,-2208.5790504,0.0002,2]
[340132276,1728667843306,-3821.11047949,0.0002,2]
[340132277,1728667843317,-3799.999993,0.0002,2]
[340132278,1728667843329,-2743.43994,0.0002,2]
[340132279,1728667843341,-835.04991627,0.0002,2]
[340132280,1728667843361,-932.50624994,0.0002,2]
[340132281,1728667843549,-5403.05417497,0.0002,2]
[340132282,1728667843561,-1967.46799056,0.0002,2]
[340132283,1728667843571,-1130.77964873,0.0002,2]
[340132284,1728667843583,-44383.14177469,0.0002,2]
[340132285,1728667843592,-832.0,0.0002,2]
[340132286,1728667843601,-832.0,0.0002,2]
[340132287,1728667843610,-1195.632,0.0002,2]
[340132288,1728667843619,-20037.21455631,0.0002,5]
[340132289,1728667843628,-5000.0,0.0002,2]
[340132290,1728667843638,-93081.68332439,0.0002,4]
[340132291,1728667843647,-9000.0,0.0002,2]
[340132292,1728667843656,-160.0,0.0002,2]
[340132293,1728667843666,-1000.0,0.0002,2]
[340132294,1728667843675,-416.0,0.0002,2]
[340132295,1728667843684,-416.0,0.0002,2]
[340132296,1728667843693,-150.0,0.0002,2]
[340132297,1728667843704,-500.0,0.0002,2]
[340132298,1728667843713,-500.0,0.0002,2]
[340132299,1728667843721,-500.0,0.0002,2]
[340132300,1728667843731,-500.0,0.0002,2]
[340132301,1728667843741,-500.0,0.0002,2]
[340132302,1728667843750,-500.0,0.0002,2]
[340132303,1728667843759,-500.0,0.0002,2]
[340132304,1728667843768,-500.0,0.0002,2]
[340132305,1728667843777,-500.0,0.0002,2]
[340132306,1728667843786,-500.0,0.0002,2]
[340132307,1728667843795,-500.0,0.0002,2]
[340132308,1728667843803,-500.0,0.0002,2]
[340132309,1728667843812,-500.0,0.0002,2]
[340132310,1728667843822,-500.0,0.0002,2]
[340132311,1728667843831,-500.0,0.0002,2]
[340132312,1728667843840,-500.0,0.0002,2]
[340132313,1728667843849,-500.0,0.0002,2]
[340132314,1728667843859,-500.0,0.0002,2]